bitfinex/quotes_BTCUSD_20240831
["timestamp","ask_amount","ask_price","bid_price","bid_amount"]
[1725094987391,0.1532,59161.0,59160.0,0.845165]
[1725094987639,0.0671,59161.0,59160.0,1.183231]
[1725094987868,0.100818,59163.0,59162.0,0.844135]
[1725094988070,0.100818,59163.0,59162.0,0.92727708]
[1725094988269,0.100818,59163.0,59162.0,1.26533108]
[1725094990304,0.100818,59163.0,59162.0,1.27533108]
[1725094992380,0.100818,59163.0,59162.0,1.28033108]
[1725094995324,0.100818,59163.0,59162.0,1.35093108]
[1725094995753,0.100818,59163.0,59162.0,1.38484108]
[1725094995937,0.100818,59163.0,59162.0,1.72289508]
[1725094996498,0.100818,59163.0,59162.0,1.71289508]
[1725094996909,0.100818,59163.0,59162.0,1.72689508]
[1725095003790,0.09878359,59163.0,59162.0,1.65629508]
[1725095011981,0.08985993,59178.0,59175.0,0.168988]
[1725095012320,0.08985993,59178.0,59176.0,0.168986]
[1725095012321,0.00422479,59177.0,59176.0,0.168986]
[1725095012726,0.00422474,59180.0,59172.0,0.08314208]
[1725095012932,0.00422474,59180.0,59178.0,0.16898]
[1725095013384,0.00422474,59180.0,59175.0,0.007]
[1725095013588,0.00422474,59180.0,59179.0,0.168978]
[1725095013999,0.002,59180.0,59179.0,0.168978]
[1725095014408,0.00504357,59181.0,59180.0,0.168976]
[1725095014616,0.000819,59181.0,59180.0,0.168976]
[1725095014821,0.002819,59181.0,59180.0,0.168976]
[1725095014998,0.151919,59181.0,59180.0,0.168976]
[1725095015648,0.149919,59181.0,59180.0,0.168976]
[1725095017046,0.149919,59181.0,59180.0,0.172976]
[1725095018903,0.149919,59181.0,59180.0,0.510928]
[1725095019273,0.149919,59181.0,59180.0,0.84888]
[1725095019629,0.000819,59181.0,59180.0,0.84888]
[1725095020531,0.000819,59181.0,59180.0,0.84488]
[1725095020740,0.000819,59181.0,59180.0,0.85388]
[1725095020947,0.06215661,59184.0,59183.0,0.506901]
[1725095022916,0.06215661,59184.0,59183.0,0.512901]
[1725095025954,0.06297461,59184.0,59183.0,0.512901]
[1725095035940,0.000818,59184.0,59183.0,0.512901]
[1725095037131,0.000818,59184.0,59183.0,0.506901]
[1725095037511,0.000818,59184.0,59183.0,0.844835]
[1725095038795,0.000818,59184.0,59183.0,0.8517348]
[1725095039236,0.000818,59184.0,59183.0,0.8457348]
[1725095039657,0.000818,59184.0,59183.0,0.8597348]
[1725095040314,0.000818,59184.0,59183.0,0.6907678]
[1725095041003,0.000818,59184.0,59183.0,0.8547348]
[1725095042143,0.071518,59184.0,59183.0,0.8547348]
[1725095043710,0.000818,59184.0,59183.0,0.8547348]
[1725095043887,0.000818,59184.0,59183.0,0.9238348]
[1725095044039,0.000818,59184.0,59183.0,0.5168008]
[1725095044246,0.000818,59184.0,59183.0,0.8547348]
[1725095046647,0.000818,59184.0,59183.0,1.1976688]
[1725095047413,0.000818,59184.0,59183.0,1.2667688]
[1725095048492,0.000818,59184.0,59183.0,0.8547348]
[1725095052385,0.000818,59184.0,59183.0,0.5168008]
[1725095052969,0.002818,59184.0,59183.0,0.5168008]
[1725095053572,0.000818,59184.0,59183.0,0.5168008]
[1725095054058,0.000818,59184.0,59183.0,0.0148998]
[1725095054290,0.000818,59184.0,59183.0,0.1838668]
[1725095054498,0.000818,59184.0,59183.0,0.5218008]
[1725095054896,0.002818,59184.0,59183.0,0.5218008]
[1725095055915,0.002818,59184.0,59183.0,0.1838668]
[1725095056170,0.67303515,59184.0,59183.0,0.0148998]
[1725095056379,1.34889315,59184.0,59183.0,0.0148998]
[1725095058077,1.48378247,59184.0,59183.0,0.0148998]
[1725095059060,1.48378247,59184.0,59183.0,0.0008998]
[1725095059264,1.34889315,59184.0,59183.0,0.0128998]
[1725095060368,1.44889315,59184.0,59183.0,0.0128998]
[1725095070818,1.11096415,59184.0,59183.0,0.0128998]
[1725095074429,1.12238174,59184.0,59183.0,0.0128998]
[1725095075069,1.46031074,59184.0,59183.0,0.0128998]
[1725095076120,1.12238174,59184.0,59183.0,0.0128998]
[1725095076746,1.46031074,59184.0,59183.0,0.0128998]
[1725095078031,1.12238174,59184.0,59183.0,0.0128998]
[1725095078345,1.46031074,59184.0,59183.0,0.0128998]
[1725095079003,1.12238174,59184.0,59183.0,0.0128998]
[1725095079827,1.46031074,59184.0,59183.0,0.0128998]
[1725095080594,1.12238174,59184.0,59183.0,0.0128998]
[1725095081438,1.46031074,59184.0,59183.0,0.0128998]
[1725095081864,1.12238174,59184.0,59183.0,0.0128998]
[1725095085744,0.96328174,59184.0,59183.0,0.0128998]
[1725095086522,0.96409974,59184.0,59183.0,0.0128998]
[1725095103419,1.03639974,59184.0,59183.0,0.0128998]
[1725095103633,1.46082874,59184.0,59183.0,0.0128998]
[1725095124267,1.30202874,59184.0,59183.0,0.0128998]
[1725095133398,1.30202874,59184.0,59183.0,0.0836998]
[1725095134450,0.96409974,59184.0,59183.0,0.0836998]
[1725095134867,1.30202874,59184.0,59183.0,0.0836998]
[1725095135488,0.96409974,59184.0,59183.0,0.0836998]
[1725095138098,0.100818,59184.0,59183.0,0.0836998]
[1725095138333,0.507711,59184.0,59183.0,0.0836998]
[1725095138473,0.607711,59184.0,59183.0,0.09787507]
[1725095141504,0.269782,59184.0,59183.0,0.09787507]
[1725095141731,0.269782,59184.0,59183.0,0.17887507]
[1725095142829,0.100818,59184.0,59183.0,0.17887507]
[1725095143035,0.000818,59184.0,59183.0,0.17887507]
[1725095143236,0.100818,59184.0,59183.0,0.17887507]
[1725095144439,0.000818,59184.0,59183.0,0.17887507]
[1725095144638,0.000818,59184.0,59183.0,0.34784207]
[1725095145045,0.000818,59184.0,59183.0,0.33584207]
[1725095145361,0.000818,59184.0,59183.0,0.67377607]
[1725095145510,0.000818,59184.0,59183.0,0.68777607]
[1725095145716,0.1,59186.0,59184.0,0.239763]
[1725095145954,0.1,59186.0,59185.0,0.0708]
[1725095146154,0.1706351,59188.0,59185.0,0.0731508]
[1725095146926,0.1706321,59189.0,59185.0,0.0731508]
[1725095147180,0.0016821,59189.0,59186.0,0.168957]
[1725095147560,0.0016821,59192.0,59187.0,0.24210437]
[1725095147775,0.0016821,59191.0,59189.0,0.0708]
[1725095147954,0.0016821,59191.0,59190.0,0.239746]
[1725095148159,0.0016821,59192.0,59191.0,0.0708]
[1725095148375,0.1,59193.0,59192.0,0.168941]
[1725095148582,0.2706121,59196.0,59193.0,0.0708]
[1725095148939,0.2706121,59196.0,59194.0,0.00234438]
[1725095149805,0.168933,59195.0,59194.0,0.00234438]
[1725095150144,0.268933,59195.0,59194.0,0.00234438]
[1725095150325,0.268933,59195.0,59193.0,0.0708]
[1725095150467,0.1,59194.0,59193.0,0.0708]
[1725095150673,0.1,59194.0,59193.0,0.08478737]
[1725095151727,0.1,59195.0,59193.0,0.08478737]
[1725095152221,0.268933,59195.0,59193.0,0.08478737]
[1725095152442,0.1706181,59194.0,59193.0,0.08478737]
[1725095152642,0.6084901,59194.0,59193.0,0.01398737]
[1725095153052,0.168944,59191.0,59187.0,0.234355]
[1725095153206,0.0016821,59190.0,59187.0,0.234355]
[1725095153411,0.0016821,59190.0,59188.0,0.18294511]
[1725095153631,0.2706261,59192.0,59188.0,0.18294511]
[1725095155225,0.168945,59191.0,59188.0,0.01399311]
[1725095155427,0.0016821,59190.0,59189.0,0.065]
[1725095155916,0.0016821,59190.0,59189.0,0.06734794]
[1725095156892,0.1706241,59192.0,59189.0,0.06734794]
[1725095157096,0.1,59191.0,59189.0,0.06734794]
[1725095157295,0.0016821,59190.0,59189.0,0.23629794]
[1725095157879,0.100818,59191.0,59189.0,0.23629794]
[1725095158081,0.000818,59191.0,59190.0,0.315847]
[1725095158297,0.000818,59191.0,59190.0,0.31819423]
[1725095159440,0.000818,59191.0,59190.0,0.33119423]
[1725095160287,0.000818,59191.0,59190.0,0.16224723]
[1725095160490,0.000818,59191.0,59190.0,0.33119423]
[1725095161143,0.000818,59191.0,59190.0,0.66908823]
[1725095161310,0.000818,59191.0,59190.0,0.33119423]
[1725095163400,0.000818,59191.0,59190.0,0.66908823]
[1725095165904,0.26771759,59195.0,59191.0,0.168944]
[1725095166495,0.26771759,59195.0,59192.0,0.014038]
[1725095166698,0.26771859,59195.0,59193.0,0.065]
[1725095166974,0.0016821,59194.0,59193.0,0.065]
[1725095168020,0.09878459,59195.0,59194.0,0.168936]
[1725095168231,0.1,59196.0,59193.0,0.065]
[1725095168426,0.2706121,59196.0,59193.0,0.065]
[1725095168881,0.26893,59196.0,59193.0,0.065]
[1725095169110,0.0016821,59195.0,59193.0,0.065]
[1725095169335,0.0016821,59195.0,59193.0,0.242937]
[1725095169737,0.0016821,59195.0,59193.0,0.233937]
[1725095169962,0.0016821,59195.0,59194.0,0.00234438]
[1725095173197,0.0016821,59195.0,59194.0,0.18028038]
[1725095173609,0.1016821,59195.0,59194.0,0.18028038]
[1725095173833,0.0025001,59196.0,59194.0,0.18028038]
[1725095175496,0.0025001,59196.0,59194.0,0.17128038]
[1725095175857,0.34891989,59200.0,59194.0,0.17928038]
[1725095176061,0.168925,59198.0,59195.0,0.0664]
[1725095176279,0.337838,59200.0,59196.0,0.00234295]
[1725095176451,0.168924,59198.0,59195.0,0.0664]
[1725095176655,0.168924,59198.0,59196.0,0.00234295]
[1725095176857,0.168924,59198.0,59195.0,0.0664]
[1725095177053,0.168927,59197.0,59196.0,0.00234295]
[1725095177282,0.168927,59197.0,59195.0,0.0664]
[1725095177529,0.168927,59197.0,59196.0,0.00234295]
[1725095177874,0.168927,59197.0,59195.0,0.0664]
[1725095178108,0.1,59196.0,59195.0,0.0664]
[1725095178482,0.26893,59196.0,59194.0,0.004]
[1725095178691,0.26893,59196.0,59192.0,0.23534]
[1725095179115,0.1,59196.0,59192.0,0.0664]
[1725095179270,0.168937,59194.0,59192.0,0.0664]
[1725095179493,0.1,59196.0,59192.0,0.0664]
[1725095179685,0.168934,59195.0,59194.0,0.012]
[1725095179923,0.168934,59195.0,59194.0,0.01434438]
[1725095180403,0.168934,59195.0,59194.0,0.00234438]
[1725095180806,0.168934,59195.0,59192.0,0.0804]
[1725095181252,0.168934,59195.0,59193.0,0.01403605]
[1725095182105,0.168936,59194.0,59193.0,0.01403605]
[1725095182801,0.168936,59194.0,59192.0,0.0664]
[1725095183062,0.168936,59194.0,59193.0,0.01403605]
[1725095183290,0.168938,59193.0,59192.0,0.0664]
[1725095183744,0.168938,59193.0,59192.0,0.08043719]
[1725095185461,0.168938,59193.0,59192.0,0.09443719]
[1725095185917,0.168938,59193.0,59192.0,0.0664]
[1725095186385,0.168938,59193.0,59192.0,0.0784]
[1725095187547,0.168938,59193.0,59192.0,0.012]
[1725095187548,0.844692,59193.0,59192.0,0.012]
[1725095188426,0.337902,59189.0,59185.0,0.0664]
[1725095188860,0.168953,59188.0,59186.0,0.01404407]
[1725095189070,0.168949,59190.0,59186.0,0.01404407]
[1725095189225,0.168954,59188.0,59186.0,0.01404407]
[1725095190470,0.19546129,59188.0,59186.0,0.01404407]
[1725095190901,0.168954,59188.0,59186.0,0.01404407]
[1725095191998,0.168956,59187.0,59186.0,0.02704407]
[1725095192732,0.506868,59187.0,59186.0,0.02704407]
[1725095192947,0.168961,59185.0,59183.0,0.0689998]
[1725095193154,0.506884,59185.0,59183.0,0.0689998]
[1725095193352,0.844807,59185.0,59184.0,0.01494617]
[1725095193835,0.87131646,59185.0,59184.0,0.0008998]
[1725095195344,0.93771646,59185.0,59184.0,0.0008998]
[1725095195519,0.87131646,59185.0,59184.0,0.0148998]
[1725095196159,0.87131646,59185.0,59184.0,0.0008998]
[1725095196374,0.87131646,59185.0,59184.0,0.0128998]
[1725095197365,0.53339346,59185.0,59184.0,0.0128998]
[1725095198368,0.87131646,59185.0,59184.0,0.0008998]
[1725095198574,0.53339346,59185.0,59184.0,0.0008998]
[1725095198725,0.53339346,59185.0,59184.0,0.0118998]
[1725095199290,0.53339346,59185.0,59184.0,0.0008998]
[1725095199693,0.53339346,59185.0,59184.0,0.0118998]
[1725095202995,0.19547046,59185.0,59184.0,0.0118998]
[1725095203601,0.19547046,59185.0,59184.0,0.02594676]
[1725095206904,0.19547046,59185.0,59184.0,0.09504676]
[1725095207111,0.168961,59185.0,59184.0,0.09504676]
[1725095207872,0.337906,59188.0,59184.0,0.09504676]
[1725095207873,0.168959,59186.0,59184.0,0.09504676]
[1725095208735,0.168959,59186.0,59184.0,0.08404676]
[1725095209133,0.168959,59186.0,59184.0,0.09404676]
[1725095210277,0.337906,59188.0,59184.0,0.09404676]
[1725095210739,0.168959,59186.0,59184.0,0.09404676]
[1725095211276,0.168959,59186.0,59184.0,0.08404676]
[1725095211475,0.168959,59186.0,59184.0,0.09204676]
[1725095211722,0.1954679,59186.0,59184.0,0.09204676]
[1725095212097,0.1954679,59186.0,59184.0,0.08404676]
[1725095212534,0.1954679,59186.0,59184.0,0.09404676]
[1725095212883,0.1954679,59186.0,59184.0,0.08404676]
[1725095213890,0.0265089,59186.0,59184.0,0.08404676]
[1725095214372,0.0265089,59186.0,59184.0,0.09504676]
[1725095216301,0.26895,59189.0,59184.0,0.09504676]
[1725095216683,0.1,59189.0,59184.0,0.09504676]
[1725095217121,0.268951,59189.0,59184.0,0.09504676]
[1725095217262,0.168953,59188.0,59184.0,0.09504676]
[1725095217468,0.168953,59188.0,59184.0,0.08404676]
[1725095217926,0.19546155,59188.0,59184.0,0.09204676]
[1725095218327,0.0040835,59189.0,59184.0,0.08404676]
[1725095218524,0.337898,59190.0,59184.0,0.08404676]
[1725095218737,0.337898,59190.0,59184.0,0.09304676]
[1725095219265,0.168954,59188.0,59184.0,0.08404676]
[1725095219418,0.337898,59190.0,59184.0,0.08404676]
[1725095219419,0.1669229,59187.0,59184.0,0.08404676]
[1725095219828,0.168953,59188.0,59184.0,0.08404676]
[1725095220232,0.168957,59187.0,59184.0,0.08404676]
[1725095220641,0.168957,59187.0,59184.0,0.09204676]
[1725095221025,0.16896,59186.0,59184.0,0.09204676]
[1725095221208,0.337903,59189.0,59184.0,0.08404676]
[1725095221404,0.168957,59187.0,59184.0,0.09404676]
[1725095221815,0.02650874,59186.0,59184.0,0.09404676]
[1725095222022,0.02650874,59186.0,59184.0,0.08404676]
[1725095222656,0.02650874,59186.0,59184.0,0.09204676]
[1725095223142,0.168961,59185.0,59184.0,0.02294676]
[1725095223743,0.19546674,59186.0,59184.0,0.02294676]
[1725095223946,0.19546674,59186.0,59184.0,0.01494676]
[1725095224189,0.168961,59185.0,59184.0,0.02594676]
[1725095225010,0.168961,59185.0,59184.0,0.01494676]
[1725095225459,0.168961,59185.0,59184.0,0.02694676]
[1725095225648,0.02650874,59186.0,59184.0,0.02694676]
[1725095225933,0.19546874,59186.0,59184.0,0.02694676]
[1725095226151,0.16896,59186.0,59185.0,0.0671]
[1725095226540,0.16896,59186.0,59185.0,0.08114562]
[1725095228513,0.16896,59186.0,59185.0,0.09214562]
[1725095229163,0.844794,59186.0,59185.0,0.09214562]
[1725095229387,0.844794,59186.0,59185.0,0.02504562]
[1725095229651,0.844794,59186.0,59185.0,0.011]
[1725095230288,0.506884,59185.0,59184.0,0.0008998]
[1725095230693,0.506884,59185.0,59184.0,0.00325131]
[1725095230875,0.506884,59185.0,59184.0,0.01494648]
[1725095231745,0.506884,59185.0,59184.0,0.02894648]
[1725095232392,0.53339275,59185.0,59184.0,0.02894648]
[1725095234937,0.87131575,59185.0,59184.0,0.02894648]
[1725095235140,0.908407,59185.0,59184.0,0.0148998]
[1725095236007,0.908407,59185.0,59184.0,0.0008998]
[1725095236615,0.909407,59185.0,59184.0,0.0128998]
[1725095240963,0.93591692,59185.0,59184.0,0.0128998]
[1725095241389,0.93591692,59185.0,59184.0,0.0137996]
[1725095243332,0.87231692,59185.0,59184.0,0.0137996]
[1725095246251,0.845807,59185.0,59184.0,0.0137996]
[1725095247301,0.945807,59185.0,59184.0,0.0137996]
[1725095249072,1.42883,59185.0,59184.0,0.0137996]
[1725095251711,1.45534116,59185.0,59184.0,0.0137996]
[1725095254923,1.45615916,59185.0,59184.0,0.0137996]
[1725095255463,1.429648,59185.0,59184.0,0.0137996]
[1725095258898,1.45615928,59185.0,59184.0,0.0137996]
[1725095259748,1.429648,59185.0,59184.0,0.0137996]
[1725095260181,0.101818,59185.0,59184.0,0.1616996]
[1725095260667,0.101818,59185.0,59184.0,0.1757468]
[1725095261446,0.001818,59185.0,59184.0,0.1757468]
[1725095261651,0.001818,59185.0,59184.0,0.6826398]
[1725095261851,0.001818,59185.0,59184.0,0.3447108]
[1725095262134,0.001818,59185.0,59184.0,0.1757468]
[1725095262488,0.02832633,59185.0,59184.0,0.1757468]
[1725095266273,0.001818,59185.0,59184.0,0.0924468]
[1725095266483,0.170779,59185.0,59184.0,0.0924468]
[1725095267221,0.001818,59185.0,59184.0,0.0924468]
[1725095267462,0.170779,59185.0,59184.0,0.0924468]
[1725095268616,0.508702,59185.0,59184.0,0.0924468]
[1725095269706,0.53521105,59185.0,59184.0,0.0924468]
[1725095271430,0.24393244,59185.0,59184.0,0.0924468]
[1725095271635,0.02650905,59185.0,59184.0,0.0924468]
[1725095271805,0.53339305,59185.0,59184.0,0.0924468]
[1725095274221,0.53339305,59185.0,59184.0,0.0278468]
[1725095274644,0.87131605,59185.0,59184.0,0.0278468]
[1725095275426,0.53339305,59185.0,59184.0,0.0278468]
[1725095276287,0.87131605,59185.0,59184.0,0.0137996]
[1725095276472,1.18273,59185.0,59184.0,0.0137996]
[1725095278688,1.183548,59185.0,59184.0,0.0137996]
[1725095279622,1.21005806,59185.0,59184.0,0.0137996]
[1725095282487,1.29125806,59185.0,59184.0,0.0137996]
[1725095282664,1.39125806,59185.0,59184.0,0.0137996]
[1725095283692,1.364748,59185.0,59184.0,0.0137996]
[1725095285777,1.39125927,59185.0,59184.0,0.0137996]
[1725095286788,1.31005927,59185.0,59184.0,0.0137996]
[1725095286989,0.29629027,59185.0,59184.0,0.1660996]
[1725095287195,0.63421327,59185.0,59184.0,0.1660996]
[1725095287422,0.97213627,59185.0,59184.0,0.18014688]
[1725095287828,0.97213627,59185.0,59184.0,0.1660996]
[1725095288475,0.71191327,59185.0,59184.0,0.1660996]
[1725095289136,0.685402,59185.0,59184.0,0.1660996]
[1725095289907,0.685402,59185.0,59184.0,0.0820996]
[1725095290114,0.685402,59185.0,59184.0,0.09614688]
[1725095291748,0.347479,59185.0,59184.0,0.09614688]
[1725095292977,0.37398832,59185.0,59184.0,0.09614688]
[1725095293963,0.37398832,59185.0,59184.0,0.01404728]
[1725095294181,0.37398832,59185.0,59179.0,0.337953]
[1725095294369,0.37398832,59185.0,59184.0,0.00936486]
[1725095294498,0.37398832,59185.0,59169.0,0.002]
[1725095294696,0.20502732,59185.0,59184.0,0.00936444]
[1725095294902,0.37398932,59185.0,59181.0,0.168972]
[1725095295145,0.37398932,59185.0,59178.0,0.0339]
[1725095295345,0.37398932,59185.0,59172.0,0.342997]
[1725095295346,0.20502732,59185.0,59172.0,0.342997]
[1725095295549,0.10602732,59185.0,59179.0,0.013]
[1725095295758,0.27498832,59185.0,59179.0,0.013]
[1725095295952,0.27398832,59185.0,59178.0,0.182981]
[1725095296159,0.168965,59184.0,59178.0,0.014]
[1725095296539,0.24748,59185.0,59178.0,0.014]
[1725095296755,0.078518,59185.0,59177.0,0.168983]
[1725095296960,0.168964,59184.0,59178.0,0.0614]
[1725095297165,0.078518,59185.0,59178.0,0.1426]
[1725095297367,0.079518,59185.0,59178.0,0.1546]
[1725095297918,0.078518,59185.0,59178.0,0.1426]
[1725095298054,0.248481,59185.0,59179.0,0.003]
[1725095298259,0.001,59184.0,59179.0,0.003]
[1725095298478,0.001,59184.0,59178.0,0.1546]
[1725095298676,0.247481,59185.0,59178.0,0.1426]
[1725095298880,0.248481,59185.0,59178.0,0.1456]
[1725095299099,0.247481,59185.0,59178.0,0.1426]
[1725095299679,0.001,59184.0,59179.0,0.003]
[1725095300795,0.169966,59184.0,59179.0,0.003]
[1725095301647,0.02650976,59183.0,59179.0,0.011]
[1725095301845,0.02650976,59183.0,59179.0,0.025]
[1725095303045,0.19547676,59183.0,59179.0,0.025]
[1725095304318,0.02650976,59183.0,59179.0,0.025]
[1725095304800,0.02650976,59183.0,59178.0,0.0622998]
[1725095305196,0.02850976,59183.0,59179.0,0.026]
[1725095305441,0.19747676,59183.0,59179.0,0.026]
[1725095305842,0.19747676,59183.0,59179.0,0.012]
[1725095306043,0.19647676,59183.0,59179.0,0.012]
[1725095306199,0.19647676,59183.0,59178.0,0.0762998]
[1725095306411,0.168973,59181.0,59178.0,0.0148998]
[1725095306709,0.338935,59183.0,59178.0,0.0008998]
[1725095306710,0.168971,59182.0,59178.0,0.0008998]
[1725095306915,0.168973,59181.0,59178.0,0.0008998]
[1725095307868,0.338935,59183.0,59178.0,0.0128998]
[1725095308085,0.168971,59182.0,59179.0,0.014]
[1725095308283,0.168973,59181.0,59178.0,0.0008998]
[1725095308721,0.169973,59181.0,59178.0,0.0148998]
[1725095308921,0.169973,59181.0,59178.0,0.0128998]
[1725095309387,0.169973,59181.0,59179.0,0.012]
[1725095309606,0.169973,59181.0,59179.0,0.026]
[1725095309823,0.19648309,59181.0,59179.0,0.012]
[1725095310727,0.19548309,59181.0,59178.0,0.0008998]
[1725095311232,0.19648309,59181.0,59178.0,0.0148998]
[1725095311438,0.19548309,59181.0,59178.0,0.0008998]
[1725095311577,0.168977,59180.0,59178.0,0.0008998]
[1725095311803,0.168977,59180.0,59179.0,0.014]
[1725095312007,0.02751009,59181.0,59179.0,0.0656]
[1725095312008,0.02651009,59181.0,59179.0,0.0656]
[1725095312201,0.19648409,59181.0,59179.0,0.0776]
[1725095312402,0.170974,59181.0,59179.0,0.0776]
[1725095312595,0.168974,59181.0,59179.0,0.0656]
[1725095313028,0.001,59180.0,59179.0,0.0796]
[1725095313982,0.002,59180.0,59179.0,0.0916]
[1725095314323,0.001,59180.0,59179.0,0.0776]
[1725095314726,0.001,59180.0,59179.0,0.0916]
[1725095315590,0.001,59180.0,59179.0,0.0776]
[1725095315815,0.16897,59182.0,59179.0,0.0916]
[1725095315955,0.001,59180.0,59179.0,0.0916]
[1725095318173,0.16897,59182.0,59179.0,0.0776]
[1725095318346,0.16997,59182.0,59179.0,0.0916]
[1725095318789,0.16897,59182.0,59179.0,0.0776]
[1725095319141,0.001,59180.0,59179.0,0.0796]
[1725095319340,0.16897,59182.0,59179.0,0.0656]
[1725095319761,0.001,59182.0,59179.0,0.0796]
[1725095319994,0.168968,59183.0,59179.0,0.0656]
[1725095320566,0.001,59182.0,59179.0,0.0786]
[1725095320965,0.168968,59183.0,59179.0,0.0656]
[1725095321283,0.169968,59183.0,59179.0,0.0786]
[1725095321518,0.001,59180.0,59179.0,0.0926]
[1725095321716,0.001,59180.0,59179.0,0.0786]
[1725095322160,0.001,59180.0,59179.0,0.0926]
[1725095322442,0.02750946,59180.0,59179.0,0.0796]
[1725095323078,0.02650946,59180.0,59179.0,0.0656]
[1725095323288,0.02750946,59180.0,59179.0,0.0796]
[1725095324026,0.02850946,59180.0,59179.0,0.0926]
[1725095324934,0.02850946,59180.0,59179.0,0.0935009]
[1725095326021,0.002,59180.0,59179.0,0.0279009]
[1725095326662,0.170976,59180.0,59179.0,0.0279009]
[1725095326863,0.002,59180.0,59179.0,0.0279009]
[1725095327819,0.170976,59180.0,59179.0,0.0279009]
[1725095328808,0.508928,59180.0,59179.0,0.0279009]
[1725095329007,0.84688,59180.0,59179.0,0.0279009]
[1725095329283,0.87339083,59180.0,59179.0,0.0279009]
[1725095329665,0.84688,59180.0,59179.0,0.0279009]
[1725095330077,0.92458,59180.0,59179.0,0.0279009]
[1725095330874,0.753604,59180.0,59179.0,0.0279009]
[1725095331413,0.92258,59180.0,59179.0,0.0279009]
[1725095332800,0.94908965,59180.0,59179.0,0.0279009]
[1725095334612,0.61113765,59180.0,59179.0,0.0279009]
[1725095335497,0.584628,59180.0,59179.0,0.0279009]
[1725095342093,0.61113768,59180.0,59179.0,0.0279009]
[1725095342893,0.94908968,59180.0,59179.0,0.0279009]
[1725095343107,1.01438968,59180.0,59179.0,0.0279009]
[1725095343528,0.67643768,59180.0,59179.0,0.0279009]
[1725095343751,1.01438968,59180.0,59179.0,0.0279009]
[1725095343949,0.67643768,59180.0,59179.0,0.0279009]
[1725095346600,0.649928,59180.0,59179.0,0.0279009]
[1725095346803,0.98788,59180.0,59179.0,0.0279009]
[1725095349791,1.01439058,59180.0,59179.0,0.0279009]
[1725095350023,0.67643858,59180.0,59179.0,0.0279009]
[1725095350221,0.61113858,59180.0,59179.0,0.0279009]
[1725095352217,1.11069058,59180.0,59179.0,0.0279009]
[1725095359196,1.08418,59180.0,59179.0,0.0279009]
[1725095362156,1.084998,59180.0,59179.0,0.0279009]
[1725095362361,1.11150905,59180.0,59179.0,0.0279009]
[1725095365043,1.44946105,59180.0,59179.0,0.0279009]
[1725095365658,1.11150905,59180.0,59179.0,0.0279009]
[1725095366685,1.44946105,59180.0,59179.0,0.0279009]
[1725095366887,1.11150905,59180.0,59179.0,0.0279009]
[1725095367093,1.44946105,59180.0,59179.0,0.0279009]
[1725095367270,1.11150905,59180.0,59179.0,0.0279009]
[1725095368050,1.44946105,59180.0,59179.0,0.0279009]
[1725095368258,1.11150905,59180.0,59179.0,0.0279009]
[1725095368455,1.44946105,59180.0,59179.0,0.0279009]
[1725095368660,1.11150905,59180.0,59179.0,0.0279009]
[1725095369082,1.084998,59180.0,59179.0,0.0279009]
[1725095369516,1.42295,59180.0,59179.0,0.0279009]
[1725095371674,1.65548373,59180.0,59179.0,0.0279009]
[1725095372080,1.99343573,59180.0,59179.0,0.0279009]
[1725095372585,2.06890787,59180.0,59179.0,0.0139009]
[1725095373191,2.06890787,59180.0,59179.0,0.0009009]
[1725095373419,2.06890787,59180.0,59179.0,0.0139009]
[1725095373750,2.40685987,59180.0,59179.0,0.0119009]
[1725095374170,2.40685987,59180.0,59179.0,0.0139009]
[1725095374781,2.40685987,59180.0,59179.0,0.0029009]
[1725095374782,2.40885987,59180.0,59179.0,0.0029009]
[1725095375167,2.09542193,59180.0,59179.0,0.0039009]
[1725095375373,2.09542193,59180.0,59179.0,0.0019009]
[1725095375581,2.04294979,59180.0,59179.0,0.0019009]
[1725095375778,2.04394979,59180.0,59179.0,0.0019009]
[1725095376407,2.04394979,59180.0,59179.0,0.0009009]
[1725095376610,2.01743573,59180.0,59179.0,0.0009009]
[1725095376958,2.01943573,59180.0,59179.0,0.0009009]
[1725095378326,2.07190787,59180.0,59179.0,0.0009009]
[1725095378542,2.07218773,59180.0,59179.0,0.0009009]
[1725095378771,2.07418773,59180.0,59179.0,0.0009009]
[1725095378980,2.41213973,59180.0,59179.0,0.0009009]
[1725095379981,2.43865653,59180.0,59179.0,0.0009009]
[1725095380946,2.43865653,59180.0,59179.0,9e-07]
[1725095381259,2.035863,59179.0,59178.0,7e-07]
[1725095381440,1.183171,59163.0,59162.0,0.0008998]
[1725095381616,1.458271,59163.0,59162.0,0.0008998]
[1725095381827,1.79632,59163.0,59162.0,0.0008998]
[1725095382208,1.82283975,59163.0,59162.0,0.0008998]
[1725095382620,2.32592064,59163.0,59162.0,0.0008998]
[1725095382856,2.35244118,59163.0,59162.0,0.0008998]
[1725095383055,2.01439218,59163.0,59162.0,0.0148998]
[1725095383465,2.01439218,59163.0,59162.0,0.0008998]
[1725095383724,1.84584054,59163.0,59162.0,0.0008998]
[1725095383987,1.84584054,59163.0,59162.0,0.0038998]
[1725095384194,1.84584054,59163.0,59162.0,0.0008998]
[1725095384434,1.84584054,59163.0,59162.0,0.0028998]
[1725095385747,1.84584054,59163.0,59162.0,0.0058998]
[1725095385959,2.01439218,59163.0,59162.0,0.0058998]
[1725095386632,2.03329447,59163.0,59162.0,0.0058998]
[1725095388744,1.86474283,59163.0,59162.0,0.0058998]
[1725095390577,1.84584054,59163.0,59162.0,0.0058998]
[1725095393465,2.23636168,59163.0,59162.0,0.0058998]
[1725095393688,0.169061,59150.0,59139.0,0.50630876]
[1725095393919,0.7983901,59150.0,59139.0,0.50630876]
[1725095394108,1.8357591,59150.0,59139.0,0.50630876]
[1725095394312,1.8357591,59150.0,59139.0,0.0009009]
[1725095394482,1.8622859,59150.0,59139.0,0.0009009]
[1725095395899,1.8357591,59150.0,59139.0,0.0009009]
[1725095396492,1.8357591,59150.0,59149.0,0.0018998]
[1725095396894,1.8357591,59150.0,59149.0,0.0008998]
[1725095397092,1.8357591,59150.0,59149.0,0.0028998]
[1725095397291,1.8357591,59150.0,59149.0,0.0038998]
[1725095397780,1.818853,59150.0,59149.0,0.0038998]
[1725095398062,1.83773402,59150.0,59149.0,0.0038998]
[1725095399124,1.5440986,59150.0,59149.0,0.0038998]
[1725095399338,1.57062701,59150.0,59149.0,0.0038998]
[1725095399763,0.84545,59140.0,59139.0,0.0009009]